bitfinex/quotes_SOLUSD_20241210
["timestamp","ask_amount","ask_price","bid_price","bid_amount"]
[1733832935796,1.6242,215.37,215.26,14.24905758]
[1733832935966,0.8707513,215.36,215.27,0.54490495]
[1733832938265,0.8707513,215.36,215.25,0.54493919]
[1733832938674,0.8707513,215.36,215.26,14.24905758]
[1733832938904,0.8707513,215.36,215.27,0.54490373]
[1733832939465,0.8707513,215.36,215.23,14.24905758]
[1733832939693,0.8707513,215.36,215.24,0.54513702]
[1733832940305,20.0,215.32,215.24,0.54513702]
[1733832940712,20.0,215.32,215.25,0.54514239]
[1733832940883,20.0,215.32,215.23,0.54514867]
[1733832941089,20.0,215.32,215.22,14.24905758]
[1733832941292,20.0,215.32,215.23,0.54515167]
[1733832941709,0.87089175,215.31,215.23,0.54515167]
[1733832942022,0.87089175,215.31,215.21,14.24905758]
[1733832942217,0.87089175,215.31,215.22,0.54529059]
[1733832943298,0.12549,215.3,215.19,0.54526968]
[1733832943495,0.87089175,215.31,215.15,14.24905758]
[1733832943684,0.87089175,215.31,215.16,0.54560022]
[1733832944205,7.9385,215.3,215.16,0.54560022]
[1733832944406,20.0,215.27,215.1,15.35172036]
[1733832944612,0.8712892,215.26,215.12,14.24905758]
[1733832944990,20.0,215.27,215.1,0.5569663]
[1733832944991,20.0,215.27,215.14,14.24905758]
[1733832945188,7.9385,215.22,215.1,0.5569663]
[1733832945496,20.0,215.18,215.1,0.5569663]
[1733832945685,0.87157316,215.17,215.1,0.5569663]
[1733832945888,20.0,215.19,215.1,0.5569663]
[1733832946291,0.87144485,215.18,215.1,0.5569663]
[1733832946490,20.0,215.19,215.1,0.5569663]
[1733832946687,0.87144429,215.18,215.1,0.5569663]
[1733832949636,0.87156053,215.21,215.1,0.5569663]
[1733832950209,0.12549,215.2,215.1,0.5569663]
[1733832951004,20.87161668,215.19,215.1,0.5569663]
[1733832952008,0.12549,215.18,215.1,0.5569663]
[1733832952205,0.87171492,215.17,215.1,0.5569663]
[1733832952507,20.0,215.13,215.1,0.5569663]
[1733832952706,0.87174714,215.12,215.1,0.5569663]
[1733832954631,0.87174714,215.12,214.96,14.24905758]
[1733832954818,20.0,215.13,214.97,0.5471852]
[1733832955012,0.12549,215.12,214.97,0.5471852]
[1733832955217,0.99737982,215.12,214.97,0.5471852]
[1733832955413,0.99737982,215.12,214.95,0.54738627]
[1733832955622,20.99737982,215.12,214.95,0.54738627]
[1733832955821,20.99737982,215.12,214.95,14.79644385]
[1733832956139,0.87188982,215.12,214.99,14.24905758]
[1733832956315,0.87188982,215.12,215.0,14.79594694]
[1733832957145,7.9385,215.16,215.05,14.24905758]
[1733832957349,7.9385,215.16,215.06,0.54637683]
[1733832957510,9.80822705,215.22,215.06,0.54637683]
[1733832957511,1.5086,215.21,215.11,14.24905758]
[1733832957716,1.5086,215.21,215.12,14.79496629]
[1733832958248,1.5086,215.21,215.12,0.54590871]
[1733832958424,9.80822705,215.22,215.12,312.54590871]
[1733832958626,9.80822705,215.22,215.12,312.0]
[1733832958841,9.80822705,215.22,215.11,14.24905758]
[1733832959017,9.80822705,215.22,215.12,0.54591049]
[1733832959213,10.67951364,215.22,215.12,0.54591049]
[1733832959531,10.67951364,215.22,215.08,14.24905758]
[1733832959730,10.67951364,215.22,215.09,0.54616778]
[1733832960744,10.67951364,215.22,215.09,14.79522536]
[1733832961116,10.67951364,215.22,215.05,20.54616512]
[1733832961323,10.67951364,215.22,215.07,14.24905758]
[1733832961543,10.67951364,215.22,215.07,14.79534001]
[1733832962050,10.67951364,215.22,215.1,14.24905758]
[1733832962231,10.67951364,215.22,215.09,14.24905758]
[1733832962434,9.80822705,215.22,215.11,14.24905758]
[1733832962735,9.80822705,215.22,215.1,14.7950719]
[1733832962933,9.80822705,215.22,215.11,14.24905758]
[1733832963130,9.80822705,215.22,215.12,0.54587397]
[1733832965247,9.80822705,215.22,215.14,22.82610778]
[1733832965450,9.80822705,215.22,215.17,22.82610778]
[1733832965652,9.80822705,215.22,215.18,23.37162734]
[1733832965864,9.80822705,215.22,215.17,22.82610778]
[1733832966141,9.80822705,215.22,215.18,0.54562541]
[1733832966736,9.80822705,215.22,215.13,23.902374]
[1733832966921,9.80822705,215.22,215.16,22.82610778]
[1733832967123,9.80822705,215.22,215.12,22.82610778]
[1733832967343,9.80822705,215.22,215.13,22.82610778]
[1733832969053,9.80822705,215.22,215.15,22.82610778]
[1733832969344,9.80822705,215.22,215.17,22.82610778]
[1733832969927,9.80822705,215.22,215.08,23.902374]
[1733832970132,9.80822705,215.22,215.14,22.82610778]
[1733832970627,9.80822705,215.22,215.15,22.82610778]
[1733832970841,9.80822705,215.22,215.11,20.0]
[1733832971064,9.80822705,215.22,215.16,22.82610778]
[1733832971556,9.80822705,215.22,215.12,23.776884]
[1733832971852,9.80822705,215.22,215.16,22.82610778]
[1733832972024,9.80822705,215.22,215.15,22.82610778]
[1733832972228,9.80822705,215.22,215.14,22.82610778]
[1733832972632,9.80822705,215.22,215.12,23.776884]
[1733832973056,9.80822705,215.22,215.14,22.82610778]
[1733832973349,9.80822705,215.22,215.13,22.82610778]
[1733832973550,9.80822705,215.22,215.12,22.82610778]
[1733832974322,7.917,215.18,215.01,6.2141]
[1733832974522,0.8716229,215.17,215.04,22.82610778]
[1733832974751,0.8716229,215.17,215.05,22.82610778]
[1733832974927,0.8716229,215.17,215.06,22.82610778]
[1733832975121,0.8716229,215.17,215.01,6.2141]
[1733832975346,0.8716229,215.17,215.0,313.5543]
[1733832975347,0.8716229,215.17,215.05,22.82610778]
[1733832975549,0.8716229,215.17,215.06,22.82610778]
[1733832976151,0.8716229,215.17,215.07,22.82610778]
[1733832976351,0.8716229,215.17,215.06,22.82610778]
[1733832976954,7.917,215.18,215.09,22.82610778]
[1733832977126,7.917,215.18,215.1,22.82610778]
[1733832977545,9.80822705,215.22,215.15,22.82610778]
[1733832977767,9.80822705,215.22,215.07,6.2141]
[1733832977768,9.80822705,215.22,215.17,22.82610778]
[1733832978556,9.80822705,215.22,215.18,22.82610778]
[1733832978770,9.80822705,215.22,215.17,22.82610778]
[1733832978948,9.80822705,215.22,215.16,22.82610778]
[1733832979979,9.80822705,215.22,215.1,1.5543]
[1733832979980,9.80822705,215.22,215.17,22.82610778]
[1733832981553,9.80822705,215.22,215.18,22.82610778]
[1733832981743,9.80822705,215.22,215.19,22.82610778]
[1733832982879,9.80822705,215.22,215.14,312.0]
[1733832982880,9.80822705,215.22,215.21,22.82610778]
[1733832983242,9.80822705,215.22,215.2,22.82610778]
[1733832983436,9.80822705,215.22,215.18,22.82610778]
[1733832983662,9.80822705,215.22,215.19,22.82610778]
[1733832983966,9.80822705,215.22,215.2,22.82610778]
[1733832984640,9.80822705,215.22,215.19,22.82610778]
[1733832984850,9.80822705,215.22,215.17,22.82610778]
[1733832985163,9.80822705,215.22,215.16,14.26065739]
[1733832985540,9.80822705,215.22,215.07,27.8377]
[1733832985541,9.80822705,215.22,215.15,14.26065739]
[1733832985745,0.87124304,215.21,215.12,14.26065739]
[1733832986066,1.5525,215.2,215.09,14.26065739]
[1733832986242,1.5525,215.2,215.08,14.26065739]
[1733832986243,20.87148143,215.19,215.08,14.26065739]
[1733832986446,20.87148143,215.19,215.09,14.26065739]
[1733832987042,20.87148143,215.19,215.08,14.26065739]
[1733832987442,20.87148143,215.19,215.06,14.26065739]
[1733832987853,20.87148143,215.19,215.02,6.2141]
[1733832988066,20.87148143,215.19,215.06,14.26065739]
[1733832989046,20.87148143,215.19,215.08,14.26065739]
[1733832989471,20.0,215.19,215.09,14.26065739]
[1733832989675,2.42402196,215.2,215.01,1.5543]
[1733832989676,1.5525,215.2,215.11,14.26065739]
[1733832989860,1.5525,215.25,215.19,14.26065739]
[1733832990063,1.5525,215.25,215.2,14.26065739]
[1733832990263,6.3645,215.27,215.2,14.26065739]
[1733832990649,6.3645,215.27,215.21,14.26065739]
[1733832991047,1.5525,215.3,215.22,14.26065739]
[1733832991272,1.5525,215.3,215.22,22.80549389]
[1733832991967,1.5525,215.3,215.21,22.80549389]
[1733832992574,1.5525,215.3,215.16,312.0]
[1733832992575,1.5525,215.3,215.22,22.80549389]
[1733832995153,1.5525,215.3,215.23,22.80549389]
[1733832996281,1.5525,215.3,215.22,22.80549389]
[1733832996478,2.42341319,215.3,215.22,22.80549389]
[1733832996668,1.5525,215.3,215.22,22.80549389]
[1733832999295,1.5525,215.3,215.23,22.80549389]
[1733833000500,1.5525,215.3,215.17,312.0]
[1733833000501,0.87091413,215.29,215.21,22.80549389]
[1733833000667,1.5525,215.3,215.21,22.80549389]
[1733833001575,1.5525,215.3,215.22,22.80549389]
[1733833003772,1.5525,215.3,215.24,22.80549389]
[1733833005299,1.6128,215.35,215.27,22.80549389]
[1733833005506,1.6128,215.35,215.16,32.80549389]
[1733833005507,10.0,215.3,215.09,7.16947898]
[1733833005674,8.69693315,215.29,215.11,22.80549389]
[1733833005875,14.20510477,215.29,215.12,0.8500239]
[1733833006183,14.20510477,215.29,215.11,22.80549389]
[1733833006701,20.0,215.26,215.11,22.80549389]
[1733833006890,0.87127782,215.25,215.11,22.80549389]
[1733833007788,1.40046659,215.25,215.09,334.80549389]
[1733833008087,1.40046659,215.25,215.1,22.80549389]
[1733833009298,1.5083,215.24,215.1,22.80549389]
[1733833009497,0.87134603,215.23,215.09,23.776884]
[1733833009886,20.0,215.19,215.05,22.80549389]
[1733833010070,0.87149107,215.18,215.05,22.80549389]
[1733833010990,1.5083,215.17,215.05,22.80549389]
[1733833011194,0.87157697,215.16,215.05,312.0]
[1733833011979,0.87157697,215.16,215.03,22.80549389]
[1733833012176,0.87157697,215.16,215.0,22.80549389]
[1733833012410,20.0,215.12,214.98,22.80549389]
[1733833012575,1.5083,215.1,214.98,22.80549389]
[1733833012894,0.87180949,215.09,214.93,0.18140566]
[1733833013094,0.87180949,215.09,214.94,22.80549389]
[1733833013095,6.2502,215.08,214.94,22.80549389]
[1733833013303,0.8720269,215.07,214.95,14.28865071]
[1733833013602,0.8720269,215.07,214.94,14.28865071]
[1733833013805,1.5083,215.1,214.95,10.0]
[1733833013979,1.5083,215.1,215.05,14.28865071]
[1733833014176,6.2502,215.13,215.06,14.28865071]
[1733833014412,6.2502,215.13,215.05,14.28865071]
[1733833014600,6.2502,215.13,215.06,14.28865071]
[1733833014981,6.2502,215.13,215.06,326.28865071]
[1733833015201,6.2502,215.13,215.0,23.902374]
[1733833015202,6.2502,215.13,215.04,14.28865071]
[1733833015392,6.2502,215.13,215.06,14.28865071]
[1733833015598,6.2502,215.13,215.01,0.12549]
[1733833015780,6.2502,215.13,215.05,14.28865071]
[1733833016179,6.2502,215.13,215.06,23.776884]
[1733833016492,6.2502,215.13,215.05,14.28865071]
[1733833016687,1.5083,215.16,215.07,38.06553471]
[1733833016993,1.5083,215.16,215.08,14.28865071]
[1733833017887,0.87143192,215.15,215.0,1.6061]
[1733833018089,0.87143192,215.15,215.04,14.28865071]
[1733833018895,0.87143192,215.15,215.03,14.28865071]
[1733833019096,0.87143192,215.15,215.04,14.28865071]
[1733833019407,21.5083,215.16,215.07,14.28865071]
[1733833019408,1.5083,215.16,215.07,14.28865071]
[1733833019713,0.87151332,215.15,215.02,14.28865071]
[1733833020078,0.87151332,215.15,215.03,14.28865071]
[1733833021195,0.87151332,215.15,215.02,14.28865071]
[1733833021395,0.87151332,215.15,215.02,326.28865071]
[1733833021800,0.12549,215.14,215.02,312.0]
[1733833021996,0.12549,215.14,214.97,14.28865071]
[1733833021997,0.87180262,215.13,214.97,14.28865071]
[1733833022182,20.0,215.09,214.96,14.28865071]
[1733833022508,20.0,215.09,214.93,14.47005637]
[1733833022509,0.87190159,215.08,214.93,14.47005637]
[1733833022818,6.232,215.06,214.93,0.18140566]
[1733833023009,20.0,215.03,214.93,0.18140566]
[1733833023313,0.12549,214.98,214.93,0.18140566]
[1733833023514,0.99794528,214.98,214.93,0.18140566]
[1733833023715,0.99794528,214.98,214.89,0.5569663]
[1733833024295,20.0,214.94,214.89,0.5569663]
[1733833024527,0.87262211,214.93,214.89,0.5569663]
[1733833025191,0.8726027,214.95,214.89,0.5569663]
[1733833027113,0.87264138,214.93,214.89,0.5569663]
[1733833029096,21.5194,214.91,214.89,0.5569663]
[1733833029427,0.87277626,214.9,214.89,0.5569663]
[1733833029589,20.0,214.86,214.73,6.0293]
[1733833029896,0.87286819,214.85,214.75,22.88910317]
[1733833030239,0.87286658,214.85,214.76,22.88910317]
[1733833030515,0.87279578,214.88,214.76,22.88910317]
[1733833031296,0.87279578,214.88,214.75,22.88910317]
[1733833031506,0.87279578,214.88,214.65,20.0]
[1733833031507,0.87279578,214.88,214.74,22.88910317]
[1733833031715,20.0,214.86,214.73,22.88910317]
[1733833031892,0.87292149,214.85,214.73,22.88910317]
[1733833032093,0.87292149,214.85,214.73,334.88910317]
[1733833032293,1.5434,214.84,214.67,0.5569663]
[1733833032512,0.87295987,214.83,214.71,22.88910317]
[1733833032722,0.12549,214.82,214.69,22.88910317]
[1733833032934,0.12549,214.82,214.67,0.5569663]
[1733833032935,6.2564,214.79,214.67,0.5569663]
[1733833033235,20.0,214.76,214.67,0.5569663]
[1733833033435,0.99880813,214.75,214.67,0.5569663]
[1733833033933,0.12549,214.74,214.67,0.5569663]
[1733833034424,6.2564,214.71,214.67,0.5569663]
[1733833034633,0.87363045,214.7,214.67,0.5569663]
[1733833034838,6.2564,214.71,214.67,0.5569663]
[1733833035124,0.87338078,214.73,214.67,0.5569663]
[1733833035340,10.54380547,214.77,214.69,22.88910317]
[1733833035494,7.7998,214.77,214.72,22.88910317]
[1733833035691,6.2564,214.82,214.73,22.88910317]
[1733833035894,0.87304517,214.81,214.73,22.88910317]
[1733833036218,6.2564,214.82,214.74,22.88910317]
[1733833036425,6.2564,214.82,214.67,0.5569663]
[1733833036426,1.5434,214.83,214.75,22.88910317]
[1733833036594,1.5434,214.83,214.76,22.88910317]
[1733833037134,0.87284758,214.86,214.76,22.88910317]
[1733833038043,0.87284758,214.86,214.77,22.88910317]
[1733833038939,0.87284758,214.86,214.78,22.88910317]
[1733833039140,0.87284758,214.86,214.75,22.88910317]
[1733833039307,0.87284758,214.86,214.73,22.88910317]
[1733833039503,20.0,214.84,214.73,22.88910317]
[1733833039725,0.87296676,214.83,214.72,22.88910317]
[1733833040837,0.12549,214.82,214.71,22.88910317]
[1733833041139,0.87296676,214.83,214.72,22.88910317]
[1733833041504,20.0,214.84,214.75,22.88910317]
[1733833041807,20.87299131,214.84,214.74,22.88910317]
[1733833042811,0.87287377,214.86,214.78,22.88910317]
[1733833043025,6.2564,214.87,214.73,11.6425]
[1733833043229,6.2564,214.87,214.8,22.88910317]
[1733833043528,6.2564,214.87,214.81,22.88910317]
[1733833043831,1.5434,214.89,214.73,17.6898]
[1733833043832,6.1519,214.93,214.84,22.88910317]
[1733833044044,0.87250489,214.92,214.84,22.88910317]
[1733833044213,0.87250489,214.92,214.82,22.88910317]
[1733833044410,0.87250489,214.92,214.81,22.88910317]
[1733833045313,7.02440489,214.92,214.81,22.88910317]
[1733833045718,7.02440489,214.92,214.8,22.88910317]
[1733833046126,7.02440489,214.92,214.81,22.88910317]
[1733833046729,0.87250489,214.92,214.82,22.88910317]
[1733833047238,20.0,214.9,214.76,312.0]
[1733833047418,0.12549,214.88,214.74,22.88910317]
[1733833047615,0.87288209,214.87,214.74,22.88910317]
[1733833047943,0.87288209,214.87,214.75,22.88910317]
[1733833048127,0.87288209,214.87,214.7,1.5591]
[1733833048128,0.8727976,214.89,214.76,22.88910317]
[1733833048512,0.8727976,214.89,214.7,1.5591]
[1733833048513,0.8727976,214.89,214.8,22.88910317]
[1733833049439,0.8727976,214.89,214.72,23.776884]
[1733833049646,0.8727976,214.89,214.76,22.88910317]
[1733833050146,0.12549,214.88,214.75,22.88910317]
[1733833050311,0.87287002,214.87,214.75,22.88910317]
[1733833050515,0.87287002,214.87,214.74,22.88910317]
[1733833050715,0.12549,214.85,214.71,22.88910317]
[1733833050931,0.99853823,214.85,214.72,22.88910317]
[1733833051128,6.6459,214.84,214.71,22.88910317]
[1733833051327,20.0,214.81,214.7,22.88910317]
[1733833051533,0.87307893,214.8,214.7,22.88910317]
[1733833051846,20.0,214.81,214.67,0.5569663]
[1733833051847,20.0,214.81,214.72,22.88910317]
[1733833052250,0.8730528,214.83,214.74,22.88910317]
[1733833052547,6.6459,214.84,214.71,20.0]
[1733833052719,1.5774,214.86,214.78,22.88910317]
[1733833053156,1.5774,214.86,214.79,22.88910317]
[1733833054754,1.5774,214.86,214.77,22.88910317]
[1733833054755,0.87273516,214.85,214.77,22.88910317]
[1733833055051,0.87273516,214.85,214.75,22.88910317]
[1733833055747,0.87273516,214.85,214.73,22.88910317]
[1733833055946,0.87273516,214.85,214.67,12.2022663]
[1733833055947,0.87273516,214.85,214.75,22.88910317]
[1733833056249,0.87273516,214.85,214.76,22.88910317]
[1733833056966,6.6459,214.89,214.82,22.88910317]
[1733833057263,0.87263516,214.88,214.79,22.88910317]
[1733833057961,0.87263516,214.88,214.8,22.88910317]
[1733833058163,6.6459,214.89,214.83,22.88910317]
[1733833058524,1.5774,214.91,214.83,22.88910317]
[1733833058953,1.5774,214.91,214.85,22.88910317]
[1733833059262,1.5774,214.91,214.83,22.88910317]
[1733833059559,1.5774,214.91,214.78,11.6398]
[1733833059560,13.670305,214.94,214.85,22.88910317]
[1733833059762,13.670305,214.94,214.86,22.88910317]
[1733833060066,6.6459,214.94,214.86,22.88910317]
[1733833060224,1.5774,214.97,214.86,22.88910317]
[1733833060585,1.5774,214.97,214.89,22.88910317]
[1733833060892,1.5774,214.97,214.91,22.88910317]
[1733833061262,6.6459,215.03,214.92,22.88910317]
[1733833061462,18.630276,215.01,214.94,22.88910317]
[1733833061809,6.6459,215.03,214.95,22.88910317]
[1733833062155,6.6459,215.03,214.96,22.88910317]
[1733833064174,8.2233,215.06,214.88,13.164]
[1733833064175,1.5774,215.06,214.97,22.88910317]
[1733833064379,1.5774,215.06,215.0,22.88910317]
[1733833064683,1.5774,215.06,215.01,22.88910317]
[1733833065071,6.4412,215.08,215.01,22.88910317]
[1733833065489,1.5923,215.11,215.04,22.88910317]
[1733833066295,1.5923,215.11,215.02,22.88910317]
[1733833066589,0.87169489,215.1,215.01,22.88910317]
[1733833066750,0.87169489,215.1,215.02,22.88910317]
[1733833067773,0.87169489,215.1,215.03,22.88910317]
[1733833067981,1.5923,215.11,215.04,22.88910317]
[1733833068193,2.46408797,215.11,215.01,22.88910317]
[1733833068785,2.46408797,215.11,215.02,22.88910317]
[1733833069211,20.0,215.1,215.01,22.88910317]
[1733833069516,0.87182497,215.09,214.99,22.88910317]
[1733833069881,0.87182497,215.09,215.0,22.88910317]
[1733833070324,0.87182497,215.09,215.01,22.88910317]
[1733833070497,0.8717797,215.08,214.97,22.88910317]
[1733833070694,0.87187536,215.1,214.97,22.88910317]
[1733833071209,20.0,215.09,214.96,22.88910317]
[1733833071522,0.87202952,215.08,214.96,22.88910317]
[1733833072000,0.87202952,215.08,214.99,22.88910317]
[1733833072213,1.5923,215.11,215.04,22.88910317]
[1733833072392,1.5923,215.11,215.05,22.88910317]
[1733833072803,1.5923,215.11,215.06,22.88910317]
[1733833072989,6.4412,215.13,215.06,22.88910317]
[1733833074313,6.4412,215.13,215.07,22.88910317]
[1733833074522,9.81104657,215.15,215.07,22.88910317]
[1733833074896,9.81104657,215.15,215.06,22.88910317]
[1733833075486,9.81104657,215.15,215.07,22.88910317]
[1733833075943,9.81104657,215.15,215.06,22.88910317]
[1733833076105,0.87156818,215.14,215.03,22.88910317]
[1733833076312,10.68274059,215.15,215.05,22.88910317]
[1733833077522,10.68274059,215.15,214.99,1.5297]
[1733833077523,10.68274059,215.15,215.04,22.88910317]
[1733833078407,10.68274059,215.15,215.03,22.88910317]
[1733833078710,20.0,215.12,215.01,22.88910317]
[1733833078904,0.87183851,215.11,215.01,22.88910317]
[1733833080125,0.87183851,215.11,215.02,22.88910317]
[1733833080622,9.81104657,215.15,214.96,6.1821]
[1733833080623,0.87175962,215.14,215.04,22.88910317]
[1733833081036,0.87175962,215.14,215.02,22.88910317]
[1733833081204,0.87175962,215.14,215.03,22.88910317]
[1733833081403,0.87175962,215.14,215.04,22.88910317]
[1733833082329,9.81104657,215.15,214.99,20.0]
[1733833082330,9.81104657,215.15,215.07,22.88910317]
[1733833083952,20.0,215.12,215.02,22.88910317]
[1733833084117,20.0,215.12,215.01,22.88910317]
[1733833084118,0.87180643,215.11,215.01,22.88910317]
[1733833084322,0.87180643,215.11,215.0,22.88910317]
[1733833085036,0.87180643,215.11,215.02,22.88910317]
[1733833085255,20.0,215.12,215.03,22.88910317]
[1733833085543,9.81104657,215.15,215.07,22.88910317]
[1733833086218,9.81104657,215.15,215.08,22.88910317]
[1733833086431,9.81104657,215.15,215.0,11.6277]
[1733833086432,9.81104657,215.15,215.11,22.88910317]
[1733833086637,9.81104657,215.15,215.1,22.88910317]
[1733833087221,9.81104657,215.15,215.14,22.88910317]
[1733833088858,1.5831,215.3,215.14,22.88910317]
[1733833089146,1.5831,215.3,215.16,22.88910317]
[1733833089147,2.73156666,215.28,215.16,22.88910317]
[1733833089316,0.87116971,215.27,215.16,22.88910317]
[1733833089652,0.87116971,215.27,215.17,22.88910317]
[1733833089851,0.87116971,215.27,215.15,22.88910317]
[1733833090060,0.87116971,215.27,215.13,22.88910317]
[1733833090219,20.87116971,215.27,215.13,22.88910317]
[1733833090832,20.87116971,215.27,215.14,22.88910317]
[1733833091042,20.87116971,215.27,215.13,22.88910317]
[1733833091433,20.87116971,215.27,215.15,22.88910317]
[1733833092150,20.87116971,215.27,215.17,22.88910317]
[1733833092354,0.87116971,215.27,215.18,22.88910317]
[1733833092529,0.87116971,215.27,215.1,11.6225]
[1733833092530,3.60262109,215.28,215.19,22.88910317]
[1733833092734,3.60262109,215.28,215.1,11.6225]
[1733833092735,3.60262109,215.28,215.18,22.88910317]
[1733833093132,2.45415424,215.3,215.2,22.88910317]
[1733833093519,2.45415424,215.3,215.21,22.88910317]
[1733833093520,1.5831,215.3,215.21,22.88910317]
[1733833093746,20.0,215.28,215.2,22.88910317]
[1733833094425,20.0,215.28,215.21,22.88910317]
[1733833094625,20.0,215.28,215.22,22.88910317]
[1733833094939,20.0,215.31,215.25,22.88910317]
[1733833095345,7.7955,215.48,215.31,28.575184]
[1733833095666,7.7955,215.48,215.4,22.88910317]
[1733833095847,10.87019699,215.47,215.32,22.88910317]
[1733833096045,10.87019699,215.47,215.31,6.2983]
[1733833096046,7.7955,215.45,215.27,22.88910317]
[1733833096356,0.87071124,215.41,215.27,22.88910317]
[1733833096555,0.87071124,215.41,215.26,22.88910317]
[1733833096929,23.776884,215.4,215.26,22.88910317]
[1733833097132,0.87074033,215.39,215.28,22.88910317]
[1733833097336,0.87068953,215.4,215.3,22.88910317]
[1733833097528,0.87068953,215.4,215.29,22.88910317]
[1733833097740,0.87068953,215.4,215.28,22.88910317]
[1733833097951,0.87068953,215.4,215.29,22.88910317]
[1733833098162,0.87068953,215.4,215.3,22.88910317]
[1733833098366,0.87059543,215.41,215.32,22.88910317]
[1733833098870,0.5569663,215.42,215.33,22.88910317]
[1733833099040,0.5569663,215.42,215.34,22.88910317]
[1733833099241,0.5569663,215.42,215.35,22.88910317]
[1733833099450,0.5569663,215.42,215.28,23.902374]
[1733833099451,0.5569663,215.42,215.34,22.88910317]
[1733833099652,0.87045833,215.41,215.27,22.88910317]
[1733833099852,0.87045833,215.41,215.19,6.2983]
[1733833100062,0.87045833,215.41,215.25,22.88910317]
[1733833100447,0.12549,215.39,215.25,22.88910317]
[1733833100663,20.0,215.37,215.25,22.88910317]
[1733833100858,0.87082308,215.36,215.26,22.88910317]
[1733833101353,20.0,215.31,215.19,22.88910317]
[1733833101563,0.87102566,215.3,215.18,22.88910317]
[1733833101735,0.87102566,215.3,215.15,22.88910317]
[1733833101940,20.0,215.26,215.12,22.88910317]
[1733833102235,0.87130805,215.25,215.12,22.88910317]
[1733833102435,20.0,215.26,215.18,22.88910317]
[1733833102664,20.0,215.32,215.2,22.88910317]
[1733833102874,0.87099761,215.31,215.2,22.88910317]
[1733833103037,20.0,215.32,215.22,22.88910317]
[1733833103362,20.0,215.32,215.16,22.88910317]
[1733833103363,20.0,215.32,215.23,22.88910317]
[1733833103935,0.87092141,215.31,215.2,22.88910317]
[1733833104163,0.87092141,215.31,215.16,22.88910317]
[1733833104344,0.87092141,215.31,215.17,22.88910317]
[1733833104677,20.0,215.3,215.17,22.88910317]
[1733833104847,0.87119895,215.29,215.16,22.88910317]
[1733833105048,0.87119895,215.29,215.17,22.88910317]
[1733833105861,0.87108856,215.32,215.2,22.88910317]
[1733833106053,0.87108856,215.32,215.22,22.88910317]
[1733833106251,0.87108856,215.32,215.21,22.88910317]
[1733833106658,0.87108856,215.32,215.22,22.88910317]
[1733833106882,3.67130679,215.33,215.23,22.88910317]
[1733833107070,7.7955,215.35,215.26,22.88910317]
[1733833107272,6.0707,215.41,215.28,22.88910317]
[1733833107564,0.87063906,215.4,215.31,22.88910317]
[1733833107876,3.61249936,215.4,215.32,22.88910317]
[1733833108042,0.87056552,215.4,215.31,22.88910317]
[1733833108756,20.0,215.38,215.31,22.88910317]
[1733833109069,0.87062338,215.37,215.28,22.88910317]
[1733833109485,0.87062338,215.37,215.23,6.1779]
[1733833109486,0.87062338,215.37,215.23,22.88910317]
[1733833109783,20.0,215.28,215.13,1.6415]
[1733833109994,0.87112608,215.27,215.17,22.88910317]
[1733833110486,20.0,215.28,215.22,22.88910317]
[1733833110941,7.661,215.31,215.23,22.88910317]
[1733833111146,7.661,215.31,215.24,22.88910317]
[1733833111556,7.661,215.31,215.23,22.88910317]
[1733833112265,7.661,215.31,215.17,23.902374]
[1733833112266,20.0,215.36,215.25,22.88910317]
[1733833112571,0.8707936,215.35,215.26,22.88910317]
[1733833112752,2.46111388,215.37,215.28,22.88910317]
[1733833112953,1.5903,215.37,215.29,22.88910317]
[1733833113188,1.5903,215.37,215.3,22.88910317]
[1733833113490,1.5903,215.37,215.28,22.88910317]
[1733833113788,0.87071545,215.36,215.26,22.88910317]
[1733833114002,20.87071545,215.36,215.26,22.88910317]
[1733833114667,20.87071545,215.36,215.27,22.88910317]
[1733833115093,20.87071545,215.36,215.28,22.88910317]
[1733833115277,20.0,215.36,215.28,22.88910317]
[1733833115459,1.5903,215.37,215.3,22.88910317]
[1733833115654,1.5903,215.37,215.31,22.88910317]
[1733833115872,1.5903,215.37,215.3,22.88910317]
[1733833116182,6.0707,215.39,215.31,22.88910317]
[1733833116978,6.0707,215.39,215.32,22.88910317]
[1733833119257,0.5569663,215.42,215.33,22.88910317]
[1733833119459,0.5569663,215.42,215.37,22.88910317]
[1733833120285,0.5569663,215.42,215.34,22.88910317]
[1733833121601,20.87046799,215.41,215.29,22.88910317]
[1733833121899,20.0,215.37,215.25,22.88910317]
[1733833122094,0.87087994,215.36,215.23,22.88910317]
[1733833123391,0.87087994,215.36,215.24,22.88910317]
[1733833124706,0.87087994,215.36,215.27,22.88910317]
[1733833125904,0.87087994,215.36,215.26,22.88910317]
[1733833127178,0.87087994,215.36,215.27,22.88910317]